Cogmind - Beta 12 @@@ ROGUE MODE // 2023.11.25 @ 14:42:11 Player: Tim Result: Destroyed by G-47 Trooper with Particle Gun Performance ------------- Evolutions (2) 1000 Regions Visited (5) 1000 Robots Destroyed (24) 120 Value Destroyed (889) 889 Prototype IDs (4) 80 Alien Tech Used (0) 0 Bonus (300) 300 TOTAL SCORE: 3389 Bonus ------- Aligned with FarCom 300 Cogmind --------- Core Integrity 0/550 Matter 300/300 Energy 100/100 System Corruption 0% Temperature Warning (333) Movement Core (1450) Ox28 Location -8/Materials Parts ------- > --- POWER (1) -------- (None) > --- PROPULSION (4) --- (None) > --- UTILITY (4) ------ Huge Storage Unit Signal Interpreter Advanced Targeting Computer > --- WEAPON (2) ------- Ion Cannon > --- INVENTORY (25) --- Improved Ion Engine Improved Heat Sink Small Storage Unit Large Storage Unit Huge Storage Unit High-capacity Matter Pod (200) Trap Scanner Visual Processing Unit Experimental Sensor Array Signal Interpreter Seismic Detector Hardened Medium Armor Plating Skeleton Box Peak State ------------ > --- POWER ------------ Deuterium Engine > --- PROPULSION ------- Aluminum Leg Aluminum Leg Aluminum Leg Carbon-fiber Leg > --- UTILITY ---------- Huge Storage Unit Structural Scanner Experimental Sensor Array Signal Interpreter > --- WEAPON ----------- Shock Rifle Particle Gun > --- INVENTORY -------- Improved Ion Engine Aluminum Leg Improved Heat Sink Small Storage Unit Large Storage Unit Huge Storage Unit High-capacity Matter Pod Trap Scanner Visual Processing Unit Signal Interpreter Seismic Detector Hardened Medium Armor Plating Skeleton Box Ion Cannon Ion Cannon [Rating: 29] Favorites ----------- Power Ion Engine Engine Ion Engine Power Core Light Nuclear Core Propulsion Aluminum Leg Leg Aluminum Leg Utility Large Storage Unit Device Structural Scanner Storage Large Storage Unit Processor Signal Interpreter Weapon Assault Rifle Energy Gun Particle Gun Energy Cannon Ion Cannon Ballistic Gun Assault Rifle Build | -11 -10 -10 -10 -9 -8 ------- Run | Jun Mat Min Exi Min Mat Slots Evolved 4 | . . . . . 4 Power . | . . . . . . Propulsion 2 | . . . . . 2 Utility 2 | . . . . . 2 Weapon . | . . . . . . Parts Attached 34 | 7 1 6 2 1 17 Power 5 | 1 . 1 . . 3 Engine 4 | 1 . 1 . . 2 Core 1 | . . . . . 1 Reactor . | . . . . . . Propulsion 11 | 2 . 3 . . 6 Treads . | . . . . . . Leg 11 | 2 . 3 . . 6 Wheel . | . . . . . . Hover . | . . . . . . Flight . | . . . . . . Utility 9 | 1 1 1 2 . 4 Device 4 | . . 1 2 . 1 Storage 3 | 1 1 . . . 1 Processor 2 | . . . . . 2 Hackware . | . . . . . . Protection . | . . . . . . Artifact . | . . . . . . Weapon 9 | 3 . 1 . 1 4 Energy Gun 3 | . . 1 . . 2 Energy Cannon 2 | . . . . . 2 Ballistic Gun 4 | 3 . . . 1 . Ballistic Cannon . | . . . . . . Launcher . | . . . . . . Special Weapon . | . . . . . . Impact Weapon . | . . . . . . Slashing Weapon . | . . . . . . Piercing Weapon . | . . . . . . Special Melee Weapon . | . . . . . . Unidentified Prototypes 2 | . . . 2 . . Parts Lost 21 | . . 4 . 1 16 Power 4 | . . 1 . . 3 Propulsion 9 | . . 2 . . 7 Utility 1 | . . . . . 1 Weapon 7 | . . 1 . 1 5 Highest Loss Streak 12 | . . 3 . 1 12 To Critical Strikes . | . . . . . . Average Slot Usage (%) 96 | . 85 96 100 99 96 Engine 12 | . 14 11 14 14 6 Leg 28 | . 28 27 28 28 34 Device 12 | . . 13 14 14 17 Storage 13 | . 14 14 14 14 9 Processor 1 | . . . . . 9 Energy Gun 10 | . . 9 14 14 8 Ballistic Gun 15 | . 28 18 14 13 8 Naked Turns . | . . . . . . Heaviest Build 97 | 12 27 31 31 31 97 Greatest Support 45 | 20 20 20 20 20 45 Greatest Overweight (x) 28 | . 1 8 3 1 28 Average Overweight (x) . | . . 1 1 1 . Largest Inventory Capacity 25 | 8 15 15 15 15 25 Average Capacity 15 | 5 14 15 15 15 19 Most Carried 17 | 5 8 15 15 15 17 Average Carried 13 | 3 6 13 14 14 13 Final Capacity 25 | 8 15 15 15 15 25 Final Carried 15 | 2 8 15 15 14 13 Class Distribution -------------------- 72% | Mutant 13% | Skirmisher 12% | Scavenger-Skirmisher Dominant Class ---------------- Mutant | -10/Materials Mutant | -10/Mines Mutant | -10/Exiles Skirmisher | -9/Mines Scavenger-Skirmisher | -8/Materials Resources | -11 -10 -10 -10 -9 -8 ----------- Run | Jun Mat Min Exi Min Mat Matter Collected 850 | 160 123 392 . 37 138 Remotely . | . . . . . . Salvage Created 974 | . 61 307 . 48 558 Parts 42 | . 6 20 . 4 12 Haulers Intercepted . | . . . . . . Recyclers Shooed . | . . . . . . Parts Field Recycled . | . . . . . . Retrieved Matter . | . . . . . . Parts Self-Destructed . | . . . . . . Prevented . | . . . . . . Kills | -11 -10 -10 -10 -9 -8 ------- Run | Jun Mat Min Exi Min Mat Combat Hostiles Destroyed 24 | . 2 8 . 3 11 Guns 22 | . 2 8 . 3 9 Cannons 2 | . . . . . 2 Classes Destroyed 3 | . 1 1 . . 1 Swarmer 5 | . . 2 . 3 . Grunt 18 | . 2 6 . . 10 Sentry 1 | . . . . . 1 Best Kill Streak 6 | . 2 4 . 2 6 Combat Bots Only 6 | . 2 4 . 2 6 Max Kills in Single Turn 2 | . 1 2 . 1 1 Gunslinging 1 | . . 1 . . . Exploded . | . . . . . . Melee . | . . . . . . Uniques/NPCs Destroyed . | . . . . . . Combat | -11 -10 -10 -10 -9 -8 -------- Run | Jun Mat Min Exi Min Mat Damage Taken 2748 | . 51 568 . 248 1881 Core 763 | . 21 108 . 78 556 Absorbed by Shields . | . . . . . . Core Remaining (%) 58 | 100 . . . 17 . Volleys Fired 92 | . 5 23 . 14 50 Largest 2 | . 2 2 . 2 2 Hottest 120 | . 40 85 . 85 120 Shots Fired 173 | . 10 46 . 23 94 Gun 164 | . 10 46 . 23 85 Cannon 9 | . . . . . 9 Launcher . | . . . . . . Special . | . . . . . . Kinetic 99 | . 10 45 . 9 35 Thermal 68 | . . 1 . 14 53 Explosive . | . . . . . . Electromagnetic 6 | . . . . . 6 Robot Hit Streak 8 | . 3 8 . 7 8 Robot Miss Streak 4 | . 1 4 . 4 3 Penetration Max . | . . . . . . Secondary Targets 4 | . . 2 . 1 1 Max Gunslinging Chain 1 | . . 1 . 1 1 Shots Hit Robots 107 | . 4 28 . 11 64 Core Hits 51 | . 3 16 . 5 27 Critical Kills . | . . . . . . Critical Parts Destroyed . | . . . . . . Critical Strikes 5 | . . . . 1 4 Burn 5 | . . . . 1 4 Melee Attacks . | . . . . . . Impact . | . . . . . . Slashing . | . . . . . . Piercing . | . . . . . . Sneak Attacks . | . . . . . . Combat Hostiles . | . . . . . . Follow-up Attacks . | . . . . . . Damage Inflicted 1446 | . 56 364 . 131 895 Guns 1298 | . 56 364 . 125 753 Cannons 136 | . . . . . 136 Explosions . | . . . . . . Melee . | . . . . . . Ramming 12 | . . . . 6 6 Kinetic 625 | . 56 348 . 45 176 Thermal 719 | . . 16 . 80 623 Explosive . | . . . . . . Electromagnetic 90 | . . . . . 90 Impact . | . . . . . . Slashing . | . . . . . . Piercing . | . . . . . . Highest Corruption . | . . . . . . Average Corruption . | . . . . . . Corruption Purged . | . . . . . . Corruption Blocked . | . . . . . . Overload Shots . | . . . . . . Overflow Damage . | . . . . . . Projectiles . | . . . . . . Explosions . | . . . . . . Melee . | . . . . . . Knockbacks . | . . . . . . Impact . | . . . . . . Kinetic . | . . . . . . Secondary . | . . . . . . Self-Inflicted Damage . | . . . . . . Shots . | . . . . . . Rammed . | . . . . . . Targets Rammed 4 | . . . . 2 2 Kicked 4 | . . . . 2 2 Crushed . | . . . . . . Highest Temperature 611 | . 5 24 . 212 611 Average Temperature 180 | . 5 7 . 76 221 Received Heat Transfer 1395 | . 30 312 . . 1053 Effects 12 | . . . . . 12 Shutdowns 3 | . . . . . 3 Interference 3 | . . . . . 3 Short Circuit 1 | . . . . . 1 Damage (minor) 3 | . . . . . 3 Damage (core) 2 | . . . . . 2 Siege Activations . | . . . . . . Robots Corrupted . | . . . . . . Combat Hostiles . | . . . . . . Parts Fried . | . . . . . . Impact Corruptions . | . . . . . . Robots Melted . | . . . . . . Combat Hostiles . | . . . . . . Parts Melted 3 | . . . . . 3 Heat Transferred 1961 | . . 37 . 259 1665 Parts Sabotaged . | . . . . . . Parts Stolen . | . . . . . . Parts Stripped . | . . . . . . Power Chain Reactions . | . . . . . . Missiles Intercepted . | . . . . . . Alert | -11 -10 -10 -10 -9 -8 ------- Run | Jun Mat Min Exi Min Mat Peak Influence 160 | . 65 160 . 115 141 Initial . | . . . . . . Average 46 | . 28 47 . 67 43 Maximum Alert Level . | . . . . . . Low Security (%) 100 | 100 100 100 . 100 100 Level 1 . | . . . . . . Level 2 . | . . . . . . Level 3 . | . . . . . . Level 4 . | . . . . . . Level 5 . | . . . . . . High Security . | . . . . . . Max Security . | . . . . . . Squads Dispatched 6 | . 3 . . . 3 Investigation 1 | . . . . . 1 Extermination . | . . . . . . Reinforcement 4 | . 3 . . . 1 Assault 1 | . . . . . 1 Garrison . | . . . . . . Intercept . | . . . . . . Searches Triggered . | . . . . . . Construction Impeded . | . . . . . . Haulers Reinforced . | . . . . . . Active Scanning Responses . | . . . . . . Cargo Convoy Interrupts . | . . . . . . Stealth | -11 -10 -10 -10 -9 -8 --------- Run | Jun Mat Min Exi Min Mat Distress Signals 1 | . 1 . . . . Communications Jammed . | . . . . . . Distress Signals . | . . . . . . Times Spotted 29 | . 2 9 . 4 14 Peak Tracking Total 6 | . 3 5 . 3 6 Tactical Retreats 3 | . . . . 1 2 Traps | -11 -10 -10 -10 -9 -8 ------- Run | Jun Mat Min Exi Min Mat Traps Triggered . | . . . . . . Indirectly . | . . . . . . Trap Hack Attempts . | . . . . . . Triggered . | . . . . . . Disarmed 1 | . 1 . . . . Reprogrammed . | . . . . . . Reused . | . . . . . . Traps Extracted . | . . . . . . Installed . | . . . . . . Triggered . | . . . . . . Machines | -11 -10 -10 -10 -9 -8 ---------- Run | Jun Mat Min Exi Min Mat Machines Disabled 1 | . . . . 1 . Max in Single Turn 1 | . . . . 1 . Garrison Access 1 | . . . . . 1 Machines Repaired . | . . . . . . Machines Sabotaged . | . . . . . . Overloaded Fab Kills . | . . . . . . Hacking | -11 -10 -10 -10 -9 -8 --------- Run | Jun Mat Min Exi Min Mat Machines Accessed 7 | . 3 . 4 . . Terminals 3 | . 3 . . . . Fabricators . | . . . . . . Repair Stations . | . . . . . . Recycling Units . | . . . . . . Scanalyzers . | . . . . . . Garrison Access . | . . . . . . Total Hacks 56 | . 7 . 49 . . Successful 54 | . 5 . 49 . . Failed 2 | . 2 . . . . Catastrophic . | . . . . . . Database Lockouts . | . . . . . . Manual 3 | . . . 3 . . Terminals 7 | . 7 . . . . Fabricators . | . . . . . . Repair Stations . | . . . . . . Recycling Units . | . . . . . . Scanalyzers . | . . . . . . Garrison Access . | . . . . . . Terminal Hacks 54 | . 5 . 49 . . Record 49 | . . . 49 . . Prototype ID Bank 1 | . 1 . . . . Alert Level 1 | . 1 . . . . Locate Traps 1 | . 1 . . . . Disarm Traps 1 | . 1 . . . . Zone Layout 1 | . 1 . . . . Fabricator Hacks . | . . . . . . Repair Station Hacks . | . . . . . . Recycling Unit Hacks . | . . . . . . Scanalyzer . | . . . . . . Garrison Access Hacks . | . . . . . . Unauthorized Hacks . | . . . . . . Terminals . | . . . . . . Fabricators . | . . . . . . Repair Stations . | . . . . . . Recycling Units . | . . . . . . Scanalyzers . | . . . . . . Garrison Access . | . . . . . . Data Cores Recovered . | . . . . . . Used . | . . . . . . Hacking Detections 1 | . 1 . . . . Full Trace Events . | . . . . . . Feedback Events . | . . . . . . Feedback Blocked . | . . . . . . Robot Schematics Acquired . | . . . . . . Robots Built . | . . . . . . Authchips . | . . . . . . Time . | . . . . . . Total Robot Build Rating . | . . . . . . Part Schematics Acquired . | . . . . . . Parts Built . | . . . . . . Authchips . | . . . . . . Time . | . . . . . . Total Part Build Rating . | . . . . . . Parts Repaired . | . . . . . . Time . | . . . . . . Parts Recycled . | . . . . . . Recycled Matter . | . . . . . . Retrieved Matter . | . . . . . . Retrieved Components . | . . . . . . Parts Scanalyzed . | . . . . . . Part Schematics Acquired . | . . . . . . Parts Damaged . | . . . . . . Bothacking | -11 -10 -10 -10 -9 -8 ------------ Run | Jun Mat Min Exi Min Mat Used RIF Installer . | . . . . . . Robots Hacked . | . . . . . . Non-combat . | . . . . . . Combat . | . . . . . . Robot Hacks Applied . | . . . . . . Relay Couplers Released 1 | . . . . . 1 Machine Destruction 1 | . . . . . 1 Fabnet Peak Effective % . | . . . . . . Robots Rewired . | . . . . . . Allies Hacked . | . . . . . . Hacks Repelled . | . . . . . . Allies | -11 -10 -10 -10 -9 -8 -------- Run | Jun Mat Min Exi Min Mat Total Allies 2 | . . . . 2 . Largest Group 2 | . . . . 2 2 Highest-Rated Group 46 | . . . . 46 46 Highest-Rated Ally 31 | . . . . 31 31 Total Orders . | . . . . . . Ally Attacks 6 | . . . . . 6 Total Damage 44 | . . . . . 44 Kills . | . . . . . . Allies Corrupted . | . . . . . . Allies Melted . | . . . . . . Intel | -11 -10 -10 -10 -9 -8 ------- Run | Jun Mat Min Exi Min Mat Robot Analysis Total . | . . . . . . Derelict Logs Recovered 3 | . . 2 . 1 . Drone Launches . | . . . . . . Drone Recoveries . | . . . . . . Exploration | -11 -10 -10 -10 -9 -8 ------------- Run | Jun Mat Min Exi Min Mat Turns Passed 3586 | 33 447 734 1282 485 605 Spaces Moved 1742 | 36 229 328 669 219 261 Core 35 | 33 . 1 . . 1 Treads . | . . . . . . Legs 1707 | 3 229 327 669 219 260 Wheels . | . . . . . . Hover . | . . . . . . Flight . | . . . . . . Fastest Speed 50 | 50 120 190 190 190 120 Average Speed 183 | 55 186 195 191 190 159 Slowest Speed 1450 | 120 190 450 330 190 1450 Overloaded Moves . | . . . . . . Propulsion Burnouts . | . . . . . . Robots Hopped . | . . . . . . Cave-ins Triggered . | . . . . . . Exploration Rate (%) 45 | 2 37 58 93 62 21 Regions Visited 5 Branch Regions 3 Pre-discovered Areas 2 | . . 1 1 . . Known Exits Taken . | . . . . . . Unknown Exits Taken 5 | 1 1 1 1 1 . Scrap Searched 1 | . . . . 1 . Spaces Dug . | . . . . . . Terrain Destroyed 2 | . . . . . 2 Melee . | . . . . . . Projectile 2 | . . . . . 2 AOE . | . . . . . . Terrain Rammed . | . . . . . . Walls Destroyed . | . . . . . . Machines Disabled . | . . . . . . Actions | -11 -10 -10 -10 -9 -8 --------- Run | Jun Mat Min Exi Min Mat Total 1966 | 47 241 377 675 265 361 Wait 54 | . . 7 . 30 17 Move 1737 | 35 228 327 668 218 261 Hop . | . . . . . . Pick Up 39 | 5 6 13 2 . 13 Fast Attach 3 | 3 . . . . . Attach 25 | 3 1 5 2 1 13 Detach 2 | . 1 . 1 . . Swap 6 | 1 . 1 . . 4 Drop 4 | . . 1 2 . 1 Fire 92 | . 5 23 . 14 50 Melee . | . . . . . . Ram . | . . . . . . Kick 4 | . . . . 2 2 Crush . | . . . . . . Escape Stasis . | . . . . . . Rewire . | . . . . . . Trap . | . . . . . . Miscellaneous . | . . . . . . Route ------- -11/Junkyard -10/Materials -10/Mines (discovered 3 exits: [*Mat x2] / *Exi) -10/Exiles (discovered 2 exits: [*Min x2]) -9/Mines -8/Materials History --------- Turn | Location | Event 9 | -11/Junkyard | Discovered new exit (range 16) 34 | -11/Junkyard | Entered Materials 302 | -10/Materials | Build established: Mutant 309 | -10/Materials | Discovered new exit (range 16) 481 | -10/Materials | Entered Mines 507 | -10/Mines | Met a Derelict bent on vengeance 642 | -10/Mines | Discovered new exit (range 8) 643 | -10/Mines | Learned location of Storage (-9) 696 | -10/Mines | Discovered new exit (range 13) 735 | -10/Mines | Core integrity fell below 50% 771 | -10/Mines | Lost 3 parts (2n1w) 980 | -10/Mines | Learned Materials stockpile data 1143 | -10/Mines | Learned Materials emergency access door positions 1176 | -10/Mines | Found a damaged Exp. Sensor Array with a note attached 1181 | -10/Mines | Found Prototype Device 1199 | -10/Mines | Deemed a non-threat by the Exiles lab entrance 1199 | -10/Mines | Discovered new exit (range 6) 1215 | -10/Mines | Entered Exiles 1276 | -10/Exiles | Met 8R-AWN 1308 | -10/Exiles | Met EX-HEX 1393 | -10/Exiles | Met EX-DEC 1405 | -10/Exiles | Learned location of Zion (-7) 1462 | -10/Exiles | Discovered new exit (range 12) 1636 | -10/Exiles | Visited The Gauntlet 1986 | -10/Exiles | Discovered new exit (range 14) 2127 | -10/Exiles | Met EX-BIN 2159 | -10/Exiles | Aligned with FarCom system 2161 | -10/Exiles | Given EX-Vault access code 2254 | -10/Exiles | Opened EX-Vault 2266 | -10/Exiles | Found Prototype Device 2268 | -10/Exiles | Identified Skeleton Box 2269 | -10/Exiles | Identified Exp. Sensor Array 2355 | -10/Exiles | Warned to stay clear of 0b10 Research branches 2497 | -10/Exiles | Left Exiles lab with Skeleton Box 2497 | -10/Exiles | Entered Mines 2581 | -9/Mines | Core integrity fell below 20% 2791 | -9/Mines | Assembled infested the area 2830 | -9/Mines | Learned Materials stockpile data 2857 | -9/Mines | Build established: Skirmisher 2957 | -9/Mines | Discovered new exit (range 13) 2982 | -9/Mines | Entered Materials 2982 | -8/Materials | Accompanied by 2 allies 2982 | -8/Materials | Evolved 4 slots: Propulsion x2, Utility x2 2987 | -8/Materials | Led the pair of lost Derelicts to an unsafe place 3272 | -8/Materials | Lost 3 parts (1p1n1w) 3551 | -8/Materials | Core integrity fell below 50% 3576 | -8/Materials | Core integrity fell below 20% 3587 | -8/Materials | Destroyed by G-47 Trooper with Particle Gun Last Messages --------------- Deuterium Engine destroyed. Overheating: Core damaged (-66). K-01 Serf collects debris. K-01 Serf cleans the Garrison Access. Ion Cannon destroyed. Overheating: System interference. Ion Cannon temporarily disabled. Overheating: Core damaged (-60). K-01 Serf collects debris. Overheating: Ion Cannon damaged (-37). Adv. Targeting Computer broken. Overheating: Short circuit. Overheating: Huge Storage Unit damaged (-345). K-01 Serf collects debris. ALERT: Garrison Access compromised, dispatching assault squad. Garrison Access disabled. Relay Coupler [Swarmer] tumbles out of Garrison Access. K-01 Serf collects debris. U-05 Engineer builds a Wall. K-01 Serf collects debris. Map ----- +----------------------------------------------------+ | ?????????????????????????????????????????????????? | | ?????????????????????????????????????????????????? | | ?????????????????????????????????????????????????? | | ?????????????????????????????????????????????????? | | ?????????????????????????????????????????????????? | | ?????????????????????????????????????????????????? | | ?????????????????????????????????????????????????? | | ?????????????????????????????????????????????????? | | ?????????????????????????????????????????????????? | | ?????????????????????????????????????????????????? | | ?????????????????????????????????????????????????? | | ?????????????????????????????????????????????????? | | ??????????? "????????????????????????????????????? | | ????? ###??""???????????????????????????????????? | | ????? ### ####???????????????????????????? | | ???? ####+########????????????????????]??????? | | ???? h ???????????????????????????? | | ???? ?????????????????????????????? | | ???? T ?????????????????????????????? | | ?????? ??????????????????????????????? | | ????????? wC ???????????????????? | | ##?????????## #############??????????????????? | | ##?????????## ^ # ###??????????????????? | | ????????? # ^ # = ##??????????????????? | | ??????? ? # k#%%k != ###??????????????????? | | ???? !!? + %;%[[ *g@ ##???????????????????? | | ???? !! # !#%[[g! " ##???????????????????? | | ??"? !! + # [ "G" ##???????????????????? | | """ # # """ ##???????????????????? | | """ # # ##???????????????????? | | # #######/########???????????????????? | | ? """ " " # #######t########??????############## | | ? """ "R" # ####### ############################ | | ?? ""? """ # ####### ################ # | | ? ?? # #### % + """ """ =# | | ?##+##??##+## #### % # """ """ # | | ?## ###### #### # """ """ # | | ?## ###### ### # = + # | | ?## T # ##+############# % ! # | | ?## ####+### # ##% ######## %=% # | | ?## ## ##+##+## ##????#######/###### | | ?## ## # + """ ##????###### % | | ?## ## # """ # """ ##????????##! | | ?## + """ #! """ # *""" ##????????## | | ?## ## """ # """ # ##????????########## | | ?######+### """ # #########????????########## | | ?## # # #########????????????????## | | ?## """###############???????????????????????## | | ?## """###############???????????????????????## | | ?## """##????????????????????????????????????## | +----------------------------------------------------+ Best States ------------- Heat Dissipation 31 Energy Generation 14 Energy Capacity 275 Matter Stores 300 Matter Capacity 300 Sight Range 16 Robot Scan Range 20 Terrain Scan Density 10 Evasion (%) 55 Targeting Accuracy 8 Item Schematics ----------------- None Robot Schematics ------------------ None Fabricated ------------ Nothing Alien Tech Used ----------------- None Achievements -------------- Librarian Risk Taker Tourist Challenges ------------ None Game ------ Seed CompactStasisPick Manual? 0 Play Time 00:33:46 Cumulative 10.8 hours Start 2023.11.25 @ 14:07:34 End 2023.11.25 @ 14:42:11 Sessions 1 Manual Loads 0 Difficulty Rogue Special Mode None Game No. 29 Rogue 29 Adventurer 0 Explorer 0 Win Type - Total 0 Types 0/0/0/0/0/0/0/0/0 Lore% 15 Gallery% 13 Achievement% 5 Wizard Run 0 Options --------- ASCII 0 Keyboard 0 Movement Mouse Keybinds 0 Fullscreen 1 Font 24/Smallcaps Map View 113x50 Tactical HUD 0 Map Filters NONE Filters NONE Steam 1 RUN: 115792c2-9615-4b47-abd4-bea0a5d33aa9